bitfinex-derivatives/quotes_ETHF0:USTF0_20250316
["timestamp","ask_amount","ask_price","bid_price","bid_amount"]
[1742130015418,1.0714858,1880.5,1880.4,2.48348]
[1742130015624,2.4288858,1880.5,1880.4,2.48348]
[1742130016422,1.3653658,1880.5,1880.4,2.48348]
[1742130016626,1.0714858,1880.5,1880.4,2.48348]
[1742130017320,0.0079658,1880.5,1880.4,2.48348]
[1742130017825,1.06338,1880.8,1880.7,1.06341]
[1742130018028,1.06334,1880.9,1880.8,1.06329]
[1742130018330,1.06337,1880.8,1880.7,1.06335]
[1742130018623,1.06337,1880.8,1880.7,2.49865]
[1742130018922,2.45584,1880.9,1880.8,1.06335]
[1742130019229,2.4637558,1880.9,1880.8,2.49865]
[1742130020624,2.4637558,1880.9,1880.8,5.70645]
[1742130020823,2.4637558,1880.9,1880.8,2.49865]
[1742130021525,2.4637558,1880.9,1880.8,1.4353]
[1742130023127,1.06341,1880.7,1880.6,5.6913058]
[1742130023330,1.06341,1880.7,1880.6,4.6278658]
[1742130023524,1.06341,1880.7,1880.6,5.6913258]
[1742130024329,7.91121,1880.7,1880.6,0.0079658]
[1742130024516,1.06369,1880.2,1880.1,2.45235]
[1742130024721,1.06371,1880.2,1880.0,3.8691]
[1742130024931,1.06371,1880.2,1880.1,2.4523]
[1742130025428,1.06371,1880.2,1880.1,1.3886]
[1742130026016,2.42771,1880.2,1880.1,1.3886]
[1742130026625,2.42771,1880.2,1880.1,2.45235]
[1742130028021,2.42771,1880.2,1880.1,1.3886]
[1742130028423,2.42771,1880.2,1880.1,2.45235]
[1742130029232,1.78517,1880.3,1880.2,1.06369]
[1742130029433,3.16717,1880.3,1880.2,6.43759]
[1742130029727,3.16717,1880.3,1880.2,5.3739]
[1742130030329,2.44567,1880.3,1880.2,5.3739]
[1742130030937,2.44567,1880.3,1880.2,6.43759]
[1742130031727,1.72729,1880.6,1880.2,5.3739]
[1742130032030,1.3211,1880.6,1880.5,1.06352]
[1742130032228,1.06346,1880.7,1880.6,1.06346]
[1742130032429,2.38456,1880.7,1880.6,1.06346]
[1742130032633,2.38456,1880.7,1880.6,4.27126]
[1742130032830,1.7871958,1880.9,1880.8,1.06335]
[1742130033029,1.3290658,1880.9,1880.8,1.06335]
[1742130033229,0.0079658,1880.9,1880.8,1.06335]
[1742130033434,0.0079658,1880.9,1880.8,1.77805]
[1742130033630,0.0079658,1880.9,1880.8,2.49015]
[1742130033833,1.06307,1881.3,1881.2,1.06311]
[1742130034033,2.45235,1881.4,1881.3,1.06307]
[1742130034738,1.06307,1881.3,1881.2,3.2078]
[1742130034937,1.06307,1881.3,1881.2,1.426]
[1742130034938,2.45237,1881.3,1881.2,1.426]
[1742130038736,1.3893,1881.3,1880.9,4.27106]
[1742130038931,1.06318,1881.1,1881.0,1.3487]
[1742130039440,2.51008,1881.1,1881.0,1.3487]
[1742130039741,2.51008,1881.1,1881.0,2.41194]
[1742130041642,1.4469,1881.1,1881.0,2.41194]
[1742130042140,2.51008,1881.1,1881.0,2.41194]
[1742130044142,2.51008,1881.1,1881.0,1.3487]
[1742130044346,2.51008,1881.1,1880.8,1.77803]
[1742130044347,2.6581,1881.0,1880.7,0.0079658]
[1742130044646,1.06335,1880.8,1880.7,0.0079658]
[1742130045340,2.49315,1880.8,1880.7,0.0079658]
[1742130046446,2.49315,1880.8,1880.7,2.4534758]
[1742130046837,2.49315,1880.8,1880.7,1.3900658]
[1742130047037,2.49315,1880.8,1880.7,2.4534758]
[1742130047242,0.6949,1880.9,1880.7,2.4534758]
[1742130047448,2.42613,1880.9,1880.8,2.44545]
[1742130047936,4.70127,1881.0,1880.9,1.06329]
[1742130048138,1.06327,1881.0,1880.9,3.11629]
[1742130048944,1.06327,1881.0,1880.9,5.2608]
[1742130049142,1.06327,1881.0,1880.9,6.32409]
[1742130049337,1.06327,1881.0,1880.9,5.2608]
[1742130050147,2.42604,1881.1,1881.0,1.06324]
[1742130050346,2.42604,1881.1,1881.0,1.3498]
[1742130052051,2.42604,1881.1,1881.0,2.41304]
[1742130052250,2.42604,1881.1,1881.0,1.3498]
[1742130052747,2.42604,1881.1,1881.0,2.41304]
[1742130053250,2.42604,1881.1,1881.0,1.3498]
[1742130054455,2.42604,1881.1,1881.0,2.41304]
[1742130054748,2.42604,1881.1,1881.0,1.3498]
[1742130056449,0.0079658,1881.5,1881.0,4.9868]
[1742130056648,1.3441,1881.4,1881.2,4.27092]
[1742130056952,2.40711,1881.4,1881.3,1.3893]
[1742130057153,2.40711,1881.4,1881.3,2.45237]
[1742130057347,2.40711,1881.4,1881.3,1.3893]
[1742130058051,2.40711,1881.4,1881.3,2.45237]
[1742130058750,1.3441,1881.4,1881.3,2.45237]
[1742130059539,0.0079658,1881.5,1881.4,1.06301]
[1742130060142,0.0079658,1881.5,1881.4,2.41561]
[1742130060542,2.3920258,1881.5,1881.4,2.41561]
[1742130061547,1.3290658,1881.5,1881.4,2.41561]
[1742130062452,2.3920258,1881.5,1881.4,2.41561]
[1742130062748,2.3920258,1881.5,1881.4,1.3526]
[1742130062951,2.3920258,1881.5,1881.4,2.41561]
[1742130063148,1.3290658,1881.5,1881.4,5.62341]
[1742130063354,0.0079658,1881.5,1881.4,5.62341]
[1742130065054,3.636,1882.2,1881.8,1.06275]
[1742130065249,2.52081,1882.0,1881.9,2.0828]
[1742130065453,2.52081,1882.0,1881.9,1.401]
[1742130065649,2.52081,1882.0,1881.9,2.46373]
[1742130066159,1.4581,1882.0,1881.9,2.46373]
[1742130066451,0.0079658,1882.1,1882.0,1.06267]
[1742130066644,1.0705858,1882.1,1882.0,1.4422]
[1742130066849,0.0079658,1882.1,1882.0,2.50487]
[1742130067048,1.4660658,1882.1,1882.0,2.50487]
[1742130067458,2.5286858,1882.1,1882.0,1.4422]
[1742130067757,1.4660658,1882.1,1882.0,2.50487]
[1742130068760,0.0079658,1882.1,1882.0,5.71267]
[1742130068957,0.0079658,1882.1,1882.0,7.10707]
[1742130069355,1.72408,1882.4,1882.0,7.10707]
[1742130069356,1.06247,1882.4,1882.0,7.10707]
[1742130069655,1.4111,1882.4,1882.3,1.0625]
[1742130070057,4.27016,1882.6,1882.5,1.06239]
[1742130070364,1.06239,1882.5,1882.4,0.6931]
[1742130070556,1.06239,1882.5,1882.4,2.0379]
[1742130071658,2.41709,1882.5,1882.4,3.10035]
[1742130071851,2.41709,1882.5,1882.4,2.0379]
[1742130072459,2.41709,1882.5,1882.4,1.3448]
[1742130072663,1.06262,1882.1,1882.0,3.635]
[1742130072964,1.06267,1882.0,1881.9,4.6062]
[1742130073358,1.06267,1882.0,1881.9,3.9131]
[1742130073562,1.06273,1881.9,1881.8,0.0079658]
[1742130073761,1.06273,1881.9,1881.8,1.0707558]
[1742130073966,1.06273,1881.9,1881.8,2.3972558]
[1742130074265,1.06273,1881.9,1881.8,1.3344658]
[1742130074459,1.06273,1881.9,1881.8,2.3972558]
[1742130074764,1.06266,1882.1,1882.0,1.06266]
[1742130074964,1.06267,1882.0,1881.9,6.30231]
[1742130075358,1.06267,1882.0,1881.9,6.30228]
[1742130076162,2.45604,1882.1,1882.0,1.06267]
[1742130076353,2.45604,1882.1,1882.0,2.39917]
[1742130076554,2.45604,1882.1,1882.0,1.3365]
[1742130077154,2.45604,1882.1,1882.0,2.39917]
[1742130077356,2.45604,1882.1,1882.0,1.3365]
[1742130077762,2.45604,1882.1,1882.0,2.39917]
[1742130078564,1.77813,1882.3,1882.2,1.06256]
[1742130078761,3.11623,1882.3,1882.2,1.06256]
[1742130079865,1.06256,1882.2,1882.1,2.39908]
[1742130080071,2.50726,1882.2,1882.1,1.3365]
[1742130080765,1.06267,1882.0,1881.9,7.5471]
[1742130080972,1.06267,1882.0,1881.9,4.6398]
[1742130081173,1.06267,1882.0,1881.9,1.432]
[1742130081373,1.06273,1881.9,1881.8,0.0079658]
[1742130081667,1.75553,1881.9,1881.8,0.0079658]
[1742130082058,3.20023,1881.9,1881.8,0.0079658]
[1742130092179,2.50743,1881.9,1881.8,0.0079658]
[1742130092371,2.50743,1881.9,1881.8,1.3856658]
[1742130094080,2.50743,1881.9,1881.8,0.0079658]
[1742130094979,5.71523,1881.9,1881.8,0.0079658]
[1742130095277,2.50743,1881.9,1881.8,0.0079658]
[1742130096373,6.14043,1881.9,1881.8,0.0079658]
[1742130098181,1.06269,1882.0,1881.9,1.06267]
[1742130098377,4.27042,1882.2,1882.1,1.06262]
[1742130098584,1.06267,1882.1,1882.0,1.73867]
[1742130098777,2.47207,1882.1,1882.0,3.14557]
[1742130099080,2.47207,1882.1,1882.0,2.0829]
[1742130099481,2.47207,1882.1,1882.0,1.4069]
[1742130099779,3.16507,1882.1,1882.0,1.4069]
[1742130100675,1.06273,1881.9,1881.8,4.2785558]
[1742130100880,1.06273,1881.9,1881.8,4.9981558]
[1742130101883,1.06273,1881.9,1881.8,6.3679558]
[1742130102883,1.06273,1881.9,1881.8,5.3051658]
[1742130103984,1.06273,1881.9,1881.8,6.3679558]
[1742130106581,1.06273,1881.9,1881.8,5.3051658]
[1742130106988,1.06273,1881.9,1881.8,6.3679558]
[1742130107877,1.06273,1881.9,1881.8,6.3679058]
[1742130110387,2.4032,1882.0,1881.9,1.06273]
[1742130110579,1.06256,1882.3,1882.2,1.06253]
[1742130110779,1.06261,1882.2,1882.1,1.06259]
[1742130110980,1.06261,1882.2,1882.1,2.49549]
[1742130113389,1.06261,1882.2,1882.1,1.4329]
[1742130113585,1.74631,1882.2,1882.1,1.4329]
[1742130113783,3.11121,1882.2,1882.1,1.4329]
[1742130115577,1.06261,1882.2,1882.1,1.4329]
[1742130115982,2.42751,1882.2,1882.1,1.4329]
[1742130117195,2.42751,1882.2,1882.1,2.49552]
[1742130117391,1.06261,1882.2,1882.1,2.49552]
[1742130118493,2.41811,1882.2,1882.1,2.49552]
[1742130120289,2.41811,1882.2,1882.1,1.4329]
[1742130123889,2.41811,1882.2,1882.1,2.49552]
[1742130124891,1.06254,1882.3,1882.2,1.0625]
[1742130125188,1.0625,1882.3,1882.2,1.78362]
[1742130125388,1.0625,1882.3,1882.2,0.7211]
[1742130125788,2.4358,1882.3,1882.2,1.3579]
[1742130130299,1.06262,1882.1,1882.0,1.3713]
[1742130130499,1.06262,1882.1,1882.0,2.8366]
[1742130130894,2.46992,1882.1,1882.0,2.8366]
[1742130131995,1.06262,1882.1,1882.0,3.89927]
[1742130133005,1.06261,1882.2,1882.1,1.06259]
[1742130133205,1.06261,1882.2,1882.1,2.45519]
[1742130135504,1.06261,1882.2,1882.1,1.3926]
[1742130136504,1.06247,1882.4,1882.3,1.06245]
[1742130136708,1.06249,1882.4,1882.3,1.06247]
[1742130137202,2.41549,1882.4,1882.3,1.06247]
[1742130137404,2.41549,1882.4,1882.3,1.78267]
[1742130139908,2.41549,1882.4,1882.3,0.7202]
[1742130140105,2.41549,1882.4,1882.3,1.7827]
[1742130143009,1.06249,1882.4,1882.3,1.7827]
[1742130143210,1.06244,1882.5,1882.4,1.06241]
[1742130143512,1.06244,1882.5,1882.4,3.10621]
[1742130146911,1.06244,1882.5,1882.4,3.10625]
[1742130148320,1.06244,1882.5,1882.4,2.0438]
[1742130148517,1.06244,1882.5,1882.4,2.38815]
[1742130149117,1.06244,1882.5,1882.4,1.3257]
[1742130149520,2.41704,1882.5,1882.4,1.3257]
[1742130152624,2.65622,1882.4,1882.1,3.2078]
[1742130152822,2.65622,1882.4,1882.1,4.6531]
[1742130152823,1.06256,1882.2,1882.1,4.6531]
[1742130153009,1.06256,1882.2,1882.1,1.4453]
[1742130153823,1.06256,1882.2,1882.1,2.50792]
[1742130154022,1.06256,1882.2,1882.1,1.4453]
[1742130154825,1.06256,1882.2,1882.1,2.50792]
[1742130155816,1.06256,1882.2,1882.1,2.50787]
[1742130156226,1.06247,1882.4,1882.3,1.06245]
[1742130156724,1.06247,1882.4,1882.3,4.27025]
[1742130156923,1.06247,1882.4,1882.3,5.68455]
[1742130158324,2.50772,1882.5,1882.4,1.06245]
[1742130158514,2.50772,1882.5,1882.4,2.39245]
[1742130158719,2.50772,1882.5,1882.4,1.33]
[1742130159816,1.4453,1882.5,1882.4,2.39245]
[1742130160022,2.4214658,1882.7,1882.6,1.06233]
[1742130160228,1.3591658,1882.7,1882.6,1.06233]
[1742130160628,0.0079658,1882.7,1882.6,3.09993]
[1742130161132,1.0702458,1882.7,1882.6,3.09993]
[1742130161428,2.4214458,1882.7,1882.6,3.09993]
[1742130164131,1.3591658,1882.7,1882.6,3.09993]
[1742130164630,0.0079658,1882.7,1882.6,3.09993]
[1742130166323,2.65486,1883.3,1882.9,1.06212]
[1742130166635,1.3506,1883.1,1883.0,0.6694]
[1742130166938,2.4127,1883.1,1883.0,0.6694]
[1742130167325,2.4127,1883.1,1883.0,1.3996]
[1742130167529,1.06211,1883.0,1882.9,0.0079658]
[1742130167832,2.38801,1883.0,1882.9,0.0079658]
[1742130168031,2.38801,1883.0,1882.9,1.3271658]
[1742130168427,5.59581,1883.0,1882.9,0.0079658]
[1742130168731,2.38801,1883.0,1882.9,0.0079658]
[1742130170930,2.38801,1883.0,1882.9,2.5082358]
[1742130171725,2.38801,1883.0,1882.9,3.2184358]
[1742130171933,1.3259,1883.0,1882.9,3.2184358]
[1742130172738,2.4855158,1883.2,1883.1,1.06205]
[1742130172935,1.3215,1883.1,1883.0,1.4381]
[1742130173137,1.3215,1883.1,1883.0,2.50017]
[1742130173835,2.38355,1883.1,1883.0,2.50017]
[1742130174545,1.3215,1883.1,1883.0,2.50017]
[1742130175345,0.0079658,1883.2,1883.1,1.06205]
[1742130175540,0.0079658,1883.2,1883.1,1.79205]
[1742130175941,1.3447658,1883.2,1883.1,1.79205]
[1742130176447,2.4067658,1883.2,1883.1,1.79205]
[1742130177242,1.3447658,1883.2,1883.1,1.79205]
[1742130177443,2.4067658,1883.2,1883.1,1.79205]
[1742130177741,1.3447658,1883.2,1883.1,1.79205]
[1742130178549,2.4067658,1883.2,1883.1,1.79205]
[1742130178937,1.3447658,1883.2,1883.1,1.79205]
[1742130180449,2.4067658,1883.2,1883.1,1.79205]
[1742130183053,2.4067658,1883.2,1883.1,0.73]
[1742130183349,2.4067658,1883.2,1883.1,1.79205]
[1742130183544,2.4067658,1883.2,1883.1,0.73]
[1742130183746,2.4067658,1883.2,1883.1,1.06205]
[1742130184251,2.4067658,1883.2,1883.1,2.41215]
[1742130189257,1.3447658,1883.2,1883.1,2.41215]
[1742130190654,2.4067658,1883.2,1883.1,2.41215]
[1742130191053,2.4067658,1883.2,1883.1,1.3501]
[1742130191255,1.06205,1883.1,1883.0,1.06207]
[1742130191556,3.81015,1883.1,1883.0,2.42697]
[1742130193752,1.06211,1883.0,1882.9,0.0079658]
[1742130193952,2.47421,1883.0,1882.9,0.0079658]
[1742130196558,2.47421,1883.0,1882.9,1.0701358]
[1742130196748,2.47421,1883.0,1882.9,0.0079658]
[1742130196943,2.47421,1883.0,1882.9,1.0701358]
[1742130197149,2.47421,1883.0,1882.9,1.4220658]
[1742130197649,2.47421,1883.0,1882.9,2.4842358]
[1742130197852,2.47421,1883.0,1882.9,1.4220658]
[1742130198660,1.4121,1883.0,1882.9,2.4842358]
[1742130198953,2.47421,1883.0,1882.9,2.4842358]
[1742130199750,2.47421,1883.0,1882.9,3.1814358]
[1742130203157,2.47421,1883.0,1882.9,2.1192658]
[1742130203549,2.47421,1883.0,1882.9,3.1814358]
[1742130203749,1.4121,1883.0,1882.9,3.1814358]
[1742130204058,2.43409,1883.1,1883.0,1.06211]
[1742130204255,1.3637,1883.1,1883.0,2.51361]
[1742130204657,1.0699958,1883.2,1883.1,1.06205]
[1742130204855,2.4336958,1883.2,1883.1,3.19925]
[1742130206363,1.3716658,1883.2,1883.1,3.19925]
[1742130206660,2.4336658,1883.2,1883.1,3.19925]
[1742130207859,2.4336658,1883.2,1883.1,2.51355]
[1742130208857,2.4336658,1883.2,1883.1,1.4515]
[1742130209363,2.4336658,1883.2,1883.1,2.51355]
[1742130209555,2.4336658,1883.2,1883.1,1.4515]
[1742130211863,2.4336658,1883.2,1883.1,2.51355]
[1742130212761,2.4336658,1883.2,1883.1,1.4515]
[1742130213761,1.06211,1883.0,1882.9,4.9750758]
[1742130214063,1.06211,1883.0,1882.9,3.2157658]
[1742130214558,2.42391,1883.0,1882.9,3.2157658]
[1742130215167,2.42391,1883.0,1882.9,4.6315658]
[1742130215865,1.73381,1883.0,1882.9,5.6937358]
[1742130216167,1.73381,1883.0,1882.9,5.3317658]
[1742130216363,1.06211,1883.0,1882.9,6.3939358]
[1742130216762,1.06211,1883.0,1882.9,3.1861358]
[1742130217266,2.52461,1883.0,1882.9,3.1861358]
[1742130219867,1.06211,1883.0,1882.9,3.1861358]
[1742130220872,0.6824658,1883.2,1882.9,5.3317658]
[1742130221060,2.4382158,1883.2,1883.1,1.06205]
[1742130221464,2.4382158,1883.2,1883.1,1.78605]
[1742130222279,1.0700158,1883.2,1883.1,1.78605]
[1742130223082,1.0700158,1883.2,1883.1,3.15565]
[1742130223472,0.0079658,1883.2,1883.1,3.15565]
[1742130223867,1.0699658,1883.2,1883.1,3.15565]
[1742130224067,1.3510658,1883.2,1883.1,3.15565]
[1742130224268,15.30721,1883.7,1883.3,1.06191]
[1742130224472,2.40502,1883.4,1883.3,1.06191]
[1742130224669,2.40502,1883.4,1883.3,2.43151]
[1742130224874,1.3431,1883.4,1883.3,2.43151]
[1742130225066,0.7075,1883.6,1883.5,1.06183]
[1742130225276,1.3431,1883.6,1883.5,1.06183]
[1742130225771,0.0079658,1883.7,1883.6,1.06177]
[1742130226072,1.4602658,1883.7,1883.6,1.76157]
[1742130226279,1.4602658,1883.7,1883.6,3.14677]
[1742130228177,2.5219758,1883.7,1883.6,3.14677]
[1742130228566,2.5219758,1883.7,1883.6,2.44697]
[1742130229771,1.4602658,1883.7,1883.6,2.44697]
[1742130230165,2.5219758,1883.7,1883.6,2.44697]
[1742130230588,1.4602658,1883.7,1883.6,2.44697]
[1742130230775,2.5219758,1883.7,1883.6,2.44697]
[1742130231877,1.4602658,1883.7,1883.6,2.44697]
[1742130232778,1.06177,1883.6,1883.5,3.2078]
[1742130233080,1.06177,1883.6,1883.5,4.6239]
[1742130233681,1.06183,1883.5,1883.4,1.06186]
[1742130233880,3.83123,1883.5,1883.4,1.06186]
[1742130234379,0.0079658,1883.7,1883.3,8.2335]
[1742130234679,1.06179,1883.6,1883.5,1.06177]
[1742130235075,2.44269,1883.6,1883.5,1.06177]
[1742130236680,1.3809,1883.6,1883.5,1.06177]
[1742130237080,2.44267,1883.6,1883.5,1.06177]
[1742130237572,1.3809,1883.6,1883.5,1.06177]
[1742130238585,2.44267,1883.6,1883.5,1.06177]
[1742130239286,1.3809,1883.6,1883.5,1.06177]
[1742130240586,2.44267,1883.6,1883.5,1.06177]
[1742130241983,1.06183,1883.5,1883.3,1.06192]
[1742130242189,1.06199,1883.3,1883.2,1.3499]
[1742130242490,3.83094,1883.4,1883.3,1.06194]
[1742130242687,3.83094,1883.4,1883.2,2.41184]
[1742130242688,1.06194,1883.3,1883.2,2.41184]
[1742130242889,1.06194,1883.3,1883.2,1.3499]
[1742130244089,1.06194,1883.3,1883.2,2.4119]
[1742130244388,5.64833,1883.4,1883.3,1.06194]
[1742130244585,5.64833,1883.4,1883.3,3.08924]
[1742130244586,4.5864,1883.4,1883.3,3.08924]
[1742130245087,5.64828,1883.4,1883.3,2.0273]
[1742130245981,1.062,1883.2,1883.1,1.06201]
[1742130246278,1.062,1883.2,1883.1,2.42491]
[1742130246481,5.64833,1883.4,1883.3,1.06194]
[1742130247080,5.64833,1883.4,1883.3,1.76634]
[1742130247291,5.64833,1883.4,1883.3,2.47414]
[1742130247492,4.5864,1883.4,1883.3,2.47414]
[1742130247694,1.3646,1883.6,1883.3,1.4122]
[1742130247989,4.2775258,1883.7,1883.6,1.06177]
[1742130248386,1.0697258,1883.7,1883.6,1.06177]
[1742130248687,1.10542,1884.5,1883.6,1.06177]
[1742130248889,2.65134,1885.8,1884.9,2.65252]
[1742130249090,0.6662,1886.2,1885.7,3.2078]
[1742130249282,1.72653,1886.2,1885.9,1.06042]
[1742130249483,0.6662,1886.2,1885.7,4.6632]
[1742130249884,0.00523882,1886.1,1885.9,1.06046]
[1742130250084,1.06045,1886.0,1885.8,0.0079658]
[1742130250287,1.06042,1886.0,1885.8,0.0079658]
[1742130250896,3.21303882,1886.1,1885.8,1.0684958]
[1742130251190,0.00523882,1886.1,1886.0,4.26822]
[1742130251594,0.00523882,1886.1,1885.9,1.06045]
[1742130251896,0.00523882,1886.1,1885.9,1.06043]
[1742130252093,0.00523882,1886.1,1885.9,4.26823]
[1742130252289,1.06559882,1886.1,1885.9,3.2078]
[1742130252589,0.00523882,1886.1,1886.0,1.06042]
[1742130253696,0.00523882,1886.1,1885.9,4.6578]
[1742130253898,0.00523882,1886.1,1886.0,1.06042]
[1742130254200,0.00523882,1886.1,1885.9,5.71826]
[1742130254398,0.00523882,1886.1,1886.0,1.06042]
[1742130255097,1.06561882,1886.1,1885.9,5.71824]
[1742130255303,0.00523882,1886.1,1886.0,1.06042]
[1742130255600,1.06559882,1886.1,1885.9,5.71824]
[1742130256103,1.06559882,1886.1,1885.9,4.6578]
[1742130256304,0.00523882,1886.1,1886.0,1.06042]
[1742130256903,0.00523882,1886.1,1886.0,2.38532]
[1742130257599,1.06014,1886.5,1886.3,1.0602]
[1742130257997,0.7083,1886.8,1886.7,1.06003]
[1742130258197,0.6776,1886.9,1886.7,3.612]
[1742130258504,3.2078,1887.3,1886.8,3.2078]
[1742130258689,3.2078,1887.3,1886.9,1.05989]
[1742130258690,4.26752,1887.3,1886.9,1.05989]
[1742130258890,4.26752,1887.3,1886.9,1.3249]
[1742130259092,0.6776,1887.5,1887.1,1.05978]
[1742130259303,0.6776,1887.5,1887.2,3.2078]
[1742130259606,3.2078,1887.8,1887.4,3.2078]
[1742130259901,1.05941,1887.8,1887.4,6.8508]
[1742130260206,3.2078,1887.7,1887.4,0.00794428]
[1742130260397,4.26738,1887.5,1887.4,0.00794428]
[1742130260899,0.7106,1887.8,1887.4,0.00794428]
[1742130261095,1.3514,1887.7,1887.4,1.06755428]
[1742130261300,1.3514,1887.7,1887.4,1.37804428]
[1742130261502,1.3514,1887.7,1887.5,3.2078]
[1742130261701,29.413,1887.9,1887.6,1.3701]
[1742130262199,1.3514,1887.8,1887.6,1.3701]
[1742130262406,1.3514,1887.8,1887.6,2.4296]
[1742130262598,1.3514,1887.8,1887.6,6.0906]
[1742130262902,1.3514,1887.8,1887.6,3.661]
[1742130263492,1.3514,1887.8,1887.6,4.72049]
[1742130264601,1.3514,1887.8,1887.6,3.661]
[1742130264897,1.3514,1887.8,1887.4,0.00794428]
[1742130264898,1.05958,1887.5,1887.4,0.00794428]
[1742130265104,4.26738,1887.5,1887.4,0.00794428]
[1742130265305,6.76738,1887.5,1887.4,0.00794428]
[1742130265500,8.17898,1887.5,1887.4,0.00794428]
[1742130265999,8.17898,1887.5,1886.7,4.72001]
[1742130266000,1.05989,1887.0,1886.7,4.72001]
[1742130266198,1.4116,1886.9,1886.8,1.05997]
[1742130266405,3.2078,1887.4,1886.8,1.4024]
[1742130266707,4.6194,1887.1,1885.8,12.23823154]
[1742130266900,3.2078,1885.9,1884.5,2.24008698]
[1742130267102,3.2078,1884.6,1884.5,2.24008698]
[1742130267403,3.2078,1884.6,1884.2,16.36439325]
[1742130267605,0.00787256,1884.7,1884.4,1.06923428]
[1742130267804,3.2078,1884.6,1884.5,1.06123]
[1742130268010,0.00787256,1884.7,1884.6,1.06121]
[1742130268408,0.00787256,1884.7,1884.5,1.06123]
[1742130268711,4.26903,1884.6,1884.4,0.00794428]
[1742130269008,1.427,1884.5,1884.4,0.00794428]
[1742130269604,1.427,1884.5,1884.4,1.06926428]
[1742130270107,1.427,1884.5,1884.4,0.00794428]
[1742130270407,1.427,1884.5,1884.4,1.06926428]
[1742130271307,1.427,1884.5,1884.4,0.00794428]
[1742130271508,3.2078,1884.6,1884.5,1.06126]
[1742130272510,3.2078,1884.6,1884.5,2.51156]
[1742130273203,0.00787256,1884.7,1884.6,1.06121]
[1742130273396,3.2078,1884.8,1884.6,1.06121]
[1742130273397,1.4304,1885.8,1884.6,9.04605]
[1742130273603,2.46241,1885.7,1885.4,1.06071]
[1742130273798,3.2078,1885.5,1885.3,4.80478]
[1742130274008,3.2078,1885.4,1885.1,1.4503]
[1742130274198,3.2078,1885.2,1885.1,2.51119]
[1742130274606,2.49095,1885.8,1885.5,1.06067]
[1742130274811,3.2078,1885.6,1885.5,1.06067]
[1742130275616,3.2078,1885.6,1885.1,4.10259]
[1742130275617,3.2078,1885.6,1885.1,1.4503]
[1742130275807,3.2078,1885.4,1885.2,1.06085]
[1742130276003,3.2078,1885.4,1885.3,1.06081]
[1742130276403,5.7078,1885.4,1885.0,0.00794428]
[1742130276709,3.2078,1885.1,1885.0,0.00794428]
[1742130276904,1.0609,1885.2,1885.0,1.06890428]
[1742130277099,1.458,1885.1,1885.0,1.06890428]
[1742130277310,3.2078,1885.3,1885.0,0.00794428]
[1742130277611,3.2078,1885.3,1885.2,1.06087]
[1742130278608,3.2078,1885.3,1885.2,4.80387]
[1742130279205,3.2078,1885.3,1885.0,0.00794428]
[1742130279404,3.2078,1885.3,1885.0,1.06889428]
[1742130279405,3.2078,1885.1,1885.0,1.06889428]
[1742130279708,3.2078,1885.1,1885.0,0.00794428]
[1742130279909,3.2078,1885.1,1885.0,1.06892428]
[1742130281306,3.2078,1885.3,1885.2,1.06084]
[1742130281506,4.5708,1885.3,1885.2,1.06084]
[1742130282211,3.2078,1885.3,1885.2,1.06084]
[1742130285910,4.26861,1885.3,1885.2,1.06084]
[1742130286112,4.5543,1885.3,1885.2,1.06087]
[1742130287712,5.61513,1885.3,1885.2,1.06087]
[1742130287911,4.5543,1885.3,1885.0,0.00794428]
[1742130288117,3.2078,1885.1,1885.0,1.06891428]
[1742130288713,4.642,1885.1,1885.0,1.06891428]
[1742130290913,3.2078,1885.1,1885.0,1.06891428]
[1742130291514,4.6471,1885.1,1885.0,1.06891428]
[1742130292323,3.2078,1885.1,1885.0,1.06891428]
[1742130292620,5.70786,1885.4,1885.0,2.66040428]
[1742130292925,5.70786,1885.4,1885.3,1.06081]
[1742130293320,4.6471,1885.4,1885.3,1.06081]
[1742130294024,5.70786,1885.4,1885.3,1.06081]
[1742130294324,4.6471,1885.4,1885.3,1.06081]
[1742130295227,5.70786,1885.4,1885.3,1.06081]
[1742130295822,4.6471,1885.4,1885.3,1.06081]
[1742130296020,5.70786,1885.4,1885.3,1.06081]
[1742130296315,5.70786,1885.4,1885.3,1.99092429]
[1742130296516,5.70786,1885.4,1885.3,0.60317755]
[1742130298136,1.06081,1885.3,1885.2,1.06083]
[1742130298321,1.4405,1885.3,1885.2,1.06083]
[1742130298622,1.4405,1885.3,1885.2,1.3879307]
[1742130298623,2.50131,1885.3,1885.2,1.3879307]
[1742130298828,2.50131,1885.3,1885.2,0.3271007]
[1742130299223,1.06087,1885.2,1885.1,1.06089]
[1742130299422,5.67947,1885.2,1885.1,1.06089]
[1742130299718,5.67947,1885.2,1885.1,2.95757209]
[1742130299914,5.67947,1885.2,1885.1,0.93087017]
[1742130300126,5.67947,1885.2,1885.1,0.60363245]
[1742130300522,1.06093,1885.1,1885.0,0.00794428]
[1742130300719,2.47173,1885.1,1885.0,0.93974924]
[1742130300919,2.47173,1885.1,1885.0,0.6121926]
[1742130301119,2.47173,1885.1,1885.0,0.93999267]
[1742130302019,1.06124,1884.6,1884.3,3.2078]
[1742130302227,4.6084,1884.5,1884.4,1.47616577]
[1742130302428,4.6084,1884.5,1884.4,2.53748577]
[1742130302429,2.46186,1884.5,1884.4,2.53748577]
[1742130302617,5.66966,1884.5,1884.4,1.47616577]
[1742130302819,5.66966,1884.5,1884.4,0.52505937]
[1742130303026,1.06136,1884.4,1884.2,1.4411]
[1742130303325,1.4006,1884.3,1884.2,2.50253]
[1742130303526,5.66978,1884.3,1884.2,3.02536548]
[1742130303715,5.66978,1884.3,1884.1,0.00794428]
[1742130303716,1.06143,1884.2,1884.1,0.00794428]
[1742130303927,2.46203,1884.2,1884.1,0.00794428]
[1742130305231,2.46203,1884.2,1883.6,9.70987031]